[Event "Late-Titled-Tuesday-Blitz-June-25-2024"]
[Site "Chess.com"]
[Date "2024.06.25"]
[Round "6"]
[White "corvachesky"]
[Black "hoshiboshi"]
[Result "1-0"]
[WhiteElo "2480"]
[BlackElo "2247"]
[TimeControl "180+1"]
[EndTime "15:04:51 PDT"]
[Termination "corvachesky won on time"]

1. Nf3 {[%clk 0:03:00.9]} 1... Nf6 {[%clk 0:02:54.8]} 2. b3 {[%clk 0:03:00.1]}
2... g6 {[%clk 0:02:53.5]} 3. Bb2 {[%clk 0:03:00.2]} 3... Bg7 {[%clk 0:02:54.2]}
4. e3 {[%clk 0:03:00.6]} 4... O-O {[%clk 0:02:53.1]} 5. Be2 {[%clk 0:03:00.6]}
5... d6 {[%clk 0:02:50.2]} 6. d4 {[%clk 0:03:00.4]} 6... Nbd7 {[%clk 0:02:44.7]}
7. O-O {[%clk 0:02:59.6]} 7... b6 {[%clk 0:02:38.4]} 8. c4 {[%clk 0:02:57.2]}
8... Bb7 {[%clk 0:02:37.7]} 9. d5 {[%clk 0:02:55.1]} 9... c6 {[%clk 0:02:21.8]}
10. dxc6 {[%clk 0:02:42.6]} 10... Bxc6 {[%clk 0:02:21.4]} 11. Nc3 {[%clk
0:02:43.2]} 11... Rc8 {[%clk 0:02:09.6]} 12. Nd4 {[%clk 0:02:40.3]} 12... Bb7
{[%clk 0:02:07.3]} 13. Bf3 {[%clk 0:02:40.5]} 13... Bxf3 {[%clk 0:02:03.4]} 14.
Qxf3 {[%clk 0:02:41.4]} 14... Ne5 {[%clk 0:01:53.8]} 15. Qe2 {[%clk 0:02:38.9]}
15... Nc6 {[%clk 0:01:49.9]} 16. Rad1 {[%clk 0:02:20.8]} 16... Qd7 {[%clk
0:01:46]} 17. Rfe1 {[%clk 0:02:18.6]} 17... Rfd8 {[%clk 0:01:37.5]} 18. h3
{[%clk 0:02:12.8]} 18... a6 {[%clk 0:01:18.1]} 19. Nd5 {[%clk 0:01:40.9]} 19...
Nxd5 {[%clk 0:01:01]} 20. cxd5 {[%clk 0:01:38.8]} 20... Nb4 {[%clk 0:01:01.5]}
21. a3 {[%clk 0:01:28.4]} 21... Nxd5 {[%clk 0:00:53.2]} 22. Qxa6 {[%clk
0:01:24.4]} 22... Ra8 {[%clk 0:00:46.1]} 23. Qe2 {[%clk 0:01:14.2]} 23... Nc7
{[%clk 0:00:43.8]} 24. a4 {[%clk 0:01:09.4]} 24... Ne6 {[%clk 0:00:29.7]} 25.
Nxe6 {[%clk 0:00:57.7]} 25... Qxe6 {[%clk 0:00:29.4]} 26. Bxg7 {[%clk
0:00:58.1]} 26... Kxg7 {[%clk 0:00:29.4]} 27. Qb2+ {[%clk 0:00:56.6]} 27... f6
{[%clk 0:00:26.7]} 28. Rc1 {[%clk 0:00:56.2]} 28... Rdc8 {[%clk 0:00:25.5]} 29.
Rxc8 {[%clk 0:00:53.4]} 29... Rxc8 {[%clk 0:00:24.8]} 30. b4 {[%clk 0:00:53.7]}
30... Rc4 {[%clk 0:00:16.3]} 31. Ra1 {[%clk 0:00:51]} 31... Qc8 {[%clk
0:00:15.3]} 32. a5 {[%clk 0:00:50.2]} 32... Rc2 {[%clk 0:00:14.2]} 33. Qd4
{[%clk 0:00:46.6]} 33... Qf5 {[%clk 0:00:10.9]} 34. e4 {[%clk 0:00:42.7]} 34...
Qf4 {[%clk 0:00:06.2]} 35. a6 {[%clk 0:00:40.5]} 35... Rc1+ {[%clk 0:00:03.9]}
36. Rxc1 {[%clk 0:00:38.3]} 36... Qxc1+ {[%clk 0:00:04.8]} 37. Kh2 {[%clk
0:00:37.9]} 37... b5 {[%clk 0:00:02.1]} 38. a7 {[%clk 0:00:35.4]} 38... Qf4+
{[%clk 0:00:01.9]} 39. g3 {[%clk 0:00:34.8]} 1-0

[Event "Late-Titled-Tuesday-Blitz-June-25-2024"]
[Site "Chess.com"]
[Date "2024.06.25"]
[Round "6"]
[White "drdaro"]
[Black "DucksParadise"]
[Result "0-1"]
[WhiteElo "2311"]
[BlackElo "2582"]
[TimeControl "180+1"]
[EndTime "15:04:53 PDT"]
[Termination "DucksParadise won by checkmate"]

1. Nf3 {[%clk 0:02:47.3]} 1... Nf6 {[%clk 0:02:53.6]} 2. g3 {[%clk 0:02:40.4]}
2... g6 {[%clk 0:02:53.3]} 3. Bg2 {[%clk 0:02:37.2]} 3... Bg7 {[%clk 0:02:54.2]}
4. O-O {[%clk 0:02:37.5]} 4... O-O {[%clk 0:02:55.1]} 5. d4 {[%clk 0:02:36.3]}
5... d5 {[%clk 0:02:56]} 6. c4 {[%clk 0:02:30.8]} 6... Nc6 {[%clk 0:02:56.9]} 7.
cxd5 {[%clk 0:02:29.2]} 7... Nxd5 {[%clk 0:02:57.8]} 8. Nc3 {[%clk 0:02:28.5]}
8... Nb6 {[%clk 0:02:57.7]} 9. e3 {[%clk 0:01:56.7]} 9... Re8 {[%clk 0:02:57.7]}
10. Qc2 {[%clk 0:01:51.3]} 10... e5 {[%clk 0:02:53.3]} 11. d5 {[%clk 0:01:27.9]}
11... Nb4 {[%clk 0:02:51]} 12. Qb3 {[%clk 0:01:24.3]} 12... N4xd5 {[%clk
0:02:23.9]} 13. Rd1 {[%clk 0:01:21.9]} 13... Be6 {[%clk 0:02:23.5]} 14. e4
{[%clk 0:01:21.2]} 14... Nxc3 {[%clk 0:02:23.6]} 15. Rxd8 {[%clk 0:01:20.8]}
15... Ne2+ {[%clk 0:02:21.6]} 16. Kf1 {[%clk 0:01:20.2]} 16... Bxb3 {[%clk
0:02:21.7]} 17. Rxe8+ {[%clk 0:01:20.2]} 17... Rxe8 {[%clk 0:02:20.6]} 18. axb3
{[%clk 0:01:17.9]} 18... Nxc1 {[%clk 0:02:19]} 19. Rxc1 {[%clk 0:01:18.8]} 19...
c6 {[%clk 0:02:19.1]} 20. Rd1 {[%clk 0:01:16.6]} 20... Bf8 {[%clk 0:02:15.2]}
21. Bh3 {[%clk 0:01:11.2]} 21... Bc5 {[%clk 0:02:10.3]} 22. Rd3 {[%clk
0:01:06.9]} 22... Bd4 {[%clk 0:02:05.2]} 23. Nxd4 {[%clk 0:01:04.8]} 23... Rd8
{[%clk 0:02:04.9]} 24. Ke2 {[%clk 0:00:24.3]} 24... exd4 {[%clk 0:01:58]} 25. b4
{[%clk 0:00:22.6]} 25... Nc4 {[%clk 0:01:57.9]} 26. b3 {[%clk 0:00:22.1]} 26...
Ne5 {[%clk 0:01:57.4]} 27. Rd1 {[%clk 0:00:21.5]} 27... g5 {[%clk 0:01:34.5]}
28. f4 {[%clk 0:00:21.4]} 28... g4 {[%clk 0:01:35]} 29. Bg2 {[%clk 0:00:14.6]}
29... Ng6 {[%clk 0:01:33.5]} 30. Kd3 {[%clk 0:00:14.7]} 30... Ne7 {[%clk
0:01:29.3]} 31. Kc4 {[%clk 0:00:14]} 31... b5+ {[%clk 0:01:24.1]} 32. Kc5 {[%clk
0:00:11.9]} 32... d3 {[%clk 0:01:23.6]} 33. Rd2 {[%clk 0:00:08.8]} 33... f6
{[%clk 0:01:16.7]} 34. Bf1 {[%clk 0:00:09.1]} 34... Kf7 {[%clk 0:01:05.4]} 35.
Rxd3 {[%clk 0:00:09.5]} 35... Rxd3 {[%clk 0:01:03.4]} 36. Bxd3 {[%clk
0:00:10.4]} 36... Ke6 {[%clk 0:01:03.7]} 37. Be2 {[%clk 0:00:09.2]} 37... h5
{[%clk 0:01:02.9]} 38. Bf1 {[%clk 0:00:08.4]} 38... Kd7 {[%clk 0:00:58.7]} 39.
h3 {[%clk 0:00:08.8]} 39... gxh3 {[%clk 0:00:54.3]} 40. Bxh3+ {[%clk 0:00:09.7]}
40... Kc7 {[%clk 0:00:54.5]} 41. Bg2 {[%clk 0:00:07.5]} 41... Ng6 {[%clk
0:00:50.8]} 42. Bf3 {[%clk 0:00:07.5]} 42... h4 {[%clk 0:00:50.2]} 43. gxh4
{[%clk 0:00:08.4]} 43... Nxh4 {[%clk 0:00:46.8]} 44. Bh5 {[%clk 0:00:09]} 44...
Ng2 {[%clk 0:00:46.5]} 45. e5 {[%clk 0:00:09.5]} 45... Nxf4 {[%clk 0:00:45.6]}
46. Bf3 {[%clk 0:00:08.4]} 46... Ne6# {[%clk 0:00:42.8]} 0-1

[Event "Late-Titled-Tuesday-Blitz-June-25-2024"]
[Site "Chess.com"]
[Date "2024.06.25"]
[Round "6"]
[White "NailBashirli"]
[Black "zsizsi99"]
[Result "1-0"]
[WhiteElo "2762"]
[BlackElo "2560"]
[TimeControl "180+1"]
[EndTime "15:04:55 PDT"]
[Termination "NailBashirli won by resignation"]

1. e4 {[%clk 0:02:59]} 1... c5 {[%clk 0:02:27]} 2. Nf3 {[%clk 0:02:38.4]} 2...
Nc6 {[%clk 0:02:25.9]} 3. Bb5 {[%clk 0:02:37.6]} 3... Nf6 {[%clk 0:02:24.9]} 4.
Nc3 {[%clk 0:02:36.5]} 4... g6 {[%clk 0:02:25]} 5. O-O {[%clk 0:02:36.2]} 5...
Bg7 {[%clk 0:02:25.1]} 6. Bxc6 {[%clk 0:02:36.3]} 6... dxc6 {[%clk 0:02:24.6]}
7. d3 {[%clk 0:02:36.3]} 7... O-O {[%clk 0:02:24]} 8. h3 {[%clk 0:02:37.2]} 8...
Nd7 {[%clk 0:02:21.9]} 9. Be3 {[%clk 0:02:37.7]} 9... e5 {[%clk 0:02:21.6]} 10.
Qd2 {[%clk 0:02:38.2]} 10... Re8 {[%clk 0:02:13.4]} 11. Nh2 {[%clk 0:02:38.1]}
11... b6 {[%clk 0:02:05]} 12. f4 {[%clk 0:02:37.5]} 12... exf4 {[%clk
0:02:04.7]} 13. Bxf4 {[%clk 0:02:38.4]} 13... Ne5 {[%clk 0:02:04.9]} 14. Rf2
{[%clk 0:02:39]} 14... Be6 {[%clk 0:01:37.8]} 15. Raf1 {[%clk 0:02:32.4]} 15...
Qd7 {[%clk 0:01:34.2]} 16. Nf3 {[%clk 0:02:22.5]} 16... Nxf3+ {[%clk 0:01:28.3]}
17. Rxf3 {[%clk 0:02:06.6]} 17... c4 {[%clk 0:01:28.4]} 18. Bh6 {[%clk
0:02:04.9]} 18... Bd4+ {[%clk 0:01:22.1]} 19. Kh1 {[%clk 0:01:47.7]} 19... Bh8
{[%clk 0:01:17.7]} 20. Bg5 {[%clk 0:01:42.4]} 20... cxd3 {[%clk 0:01:16.2]} 21.
cxd3 {[%clk 0:01:42.2]} 21... c5 {[%clk 0:01:14.1]} 22. a3 {[%clk 0:01:41.1]}
22... c4 {[%clk 0:00:54.2]} 23. Rd1 {[%clk 0:01:28.1]} 23... cxd3 {[%clk
0:00:50.6]} 24. Rxd3 {[%clk 0:01:29]} 24... Qc7 {[%clk 0:00:25.5]} 25. Nd5
{[%clk 0:01:28]} 25... Bxd5 {[%clk 0:00:20.7]} 26. exd5 {[%clk 0:01:28.6]} 26...
Rac8 {[%clk 0:00:19]} 27. d6 {[%clk 0:01:28]} 27... Qd7 {[%clk 0:00:19.2]} 28.
Re3 {[%clk 0:01:25.1]} 28... Rxe3 {[%clk 0:00:18.4]} 29. Bxe3 {[%clk 0:01:25]}
29... Re8 {[%clk 0:00:17.2]} 30. Bg5 {[%clk 0:01:23.6]} 30... Re5 {[%clk
0:00:14.8]} 31. Be7 {[%clk 0:01:23.2]} 31... Re6 {[%clk 0:00:13.3]} 32. Qc2
{[%clk 0:01:20.2]} 32... Bf6 {[%clk 0:00:13.2]} 33. Qc7 {[%clk 0:01:17]} 33...
Rxe7 {[%clk 0:00:11.6]} 34. dxe7 {[%clk 0:01:12.9]} 34... Qxe7 {[%clk
0:00:08.9]} 35. Qxe7 {[%clk 0:01:11.7]} 35... Bxe7 {[%clk 0:00:08.9]} 36. Rd7
{[%clk 0:01:12.6]} 36... Bf6 {[%clk 0:00:09.2]} 37. b3 {[%clk 0:01:13]} 37... a5
{[%clk 0:00:05.7]} 38. Rd6 {[%clk 0:01:12.1]} 38... Bb2 {[%clk 0:00:05.6]} 39.
Rxb6 {[%clk 0:01:12.7]} 39... Bxa3 {[%clk 0:00:05.7]} 40. g3 {[%clk 0:01:13.3]}
40... Bb4 {[%clk 0:00:05.4]} 41. Kg2 {[%clk 0:01:13.7]} 41... Kg7 {[%clk
0:00:05.5]} 42. Kf3 {[%clk 0:01:14.4]} 42... h5 {[%clk 0:00:05.6]} 43. Ke4
{[%clk 0:01:13.9]} 43... Be1 {[%clk 0:00:04.7]} 44. g4 {[%clk 0:01:14.3]} 44...
hxg4 {[%clk 0:00:05.2]} 45. hxg4 {[%clk 0:01:15.2]} 45... Bb4 {[%clk 0:00:05.4]}
46. Rb5 {[%clk 0:01:15.1]} 46... Be1 {[%clk 0:00:05.7]} 47. Kd5 {[%clk
0:01:14.8]} 47... Bb4 {[%clk 0:00:04.8]} 48. Kc6 {[%clk 0:01:15.3]} 48... Kf6
{[%clk 0:00:04.8]} 49. Kd7 {[%clk 0:01:15.8]} 49... Bc3 {[%clk 0:00:04]} 50. g5+
{[%clk 0:01:16.3]} 50... Kg7 {[%clk 0:00:03.8]} 51. Ke8 {[%clk 0:01:16.7]} 51...
Bd2 {[%clk 0:00:02.9]} 52. Rd5 {[%clk 0:01:16.9]} 52... Bc1 {[%clk 0:00:01.9]}
53. Rxa5 {[%clk 0:01:16.4]} 53... f6 {[%clk 0:00:01.9]} 54. Ra7+ {[%clk
0:01:16.2]} 1-0

[Event "Late-Titled-Tuesday-Blitz-June-25-2024"]
[Site "Chess.com"]
[Date "2024.06.25"]
[Round "6"]
[White "Flaccidmoves"]
[Black "Yaacovn"]
[Result "0-1"]
[WhiteElo "2532"]
[BlackElo "2693"]
[TimeControl "180+1"]
[EndTime "15:04:55 PDT"]
[Termination "Yaacovn won by resignation"]

1. Nf3 {[%clk 0:03:00.9]} 1... Nf6 {[%clk 0:02:58.6]} 2. g3 {[%clk 0:03:00.1]}
2... b6 {[%clk 0:02:58.4]} 3. Bg2 {[%clk 0:03:00.4]} 3... Bb7 {[%clk 0:02:55.3]}
4. O-O {[%clk 0:03:00.8]} 4... g6 {[%clk 0:02:55.8]} 5. c4 {[%clk 0:03:00.2]}
5... Bg7 {[%clk 0:02:56.1]} 6. d4 {[%clk 0:02:52.8]} 6... O-O {[%clk 0:02:51.5]}
7. Nc3 {[%clk 0:02:51.1]} 7... Ne4 {[%clk 0:02:51.8]} 8. Nxe4 {[%clk 0:02:32.8]}
8... Bxe4 {[%clk 0:02:52.7]} 9. d5 {[%clk 0:02:26.9]} 9... e6 {[%clk 0:02:52.7]}
10. Bg5 {[%clk 0:02:08.7]} 10... Qc8 {[%clk 0:02:51.6]} 11. Qb3 {[%clk
0:02:02.1]} 11... Qb7 {[%clk 0:02:46.4]} 12. Rfd1 {[%clk 0:02:00.1]} 12... Na6
{[%clk 0:02:42.6]} 13. Rac1 {[%clk 0:01:53.6]} 13... Nc5 {[%clk 0:02:22.6]} 14.
Qa3 {[%clk 0:01:53.5]} 14... a5 {[%clk 0:02:22.4]} 15. Be7 {[%clk 0:01:51.7]}
15... Rfe8 {[%clk 0:02:22.6]} 16. Bxc5 {[%clk 0:01:49.6]} 16... bxc5 {[%clk
0:02:23.5]} 17. b3 {[%clk 0:01:42.2]} 17... d6 {[%clk 0:02:19.4]} 18. dxe6
{[%clk 0:01:08.8]} 18... Rxe6 {[%clk 0:02:17.1]} 19. Rd2 {[%clk 0:00:59.5]}
19... Re7 {[%clk 0:02:16.2]} 20. Ne1 {[%clk 0:00:54]} 20... Bxg2 {[%clk
0:02:13.3]} 21. Nxg2 {[%clk 0:00:54.9]} 21... Ree8 {[%clk 0:02:08.8]} 22. e3
{[%clk 0:00:52.6]} 22... a4 {[%clk 0:02:09.2]} 23. Nf4 {[%clk 0:00:49.5]} 23...
axb3 {[%clk 0:02:08.3]} 24. Qxb3 {[%clk 0:00:50.4]} 24... Reb8 {[%clk
0:02:05.8]} 25. Nd5 {[%clk 0:00:48.2]} 25... Qxb3 {[%clk 0:01:55.9]} 26. axb3
{[%clk 0:00:49.1]} 26... Ra7 {[%clk 0:01:56.2]} 27. Ne7+ {[%clk 0:00:45.3]}
27... Kf8 {[%clk 0:01:55.4]} 28. Nc6 {[%clk 0:00:46.2]} 28... Rba8 {[%clk
0:01:52.3]} 29. Nxa7 {[%clk 0:00:45.7]} 29... Rxa7 {[%clk 0:01:53.2]} 30. Rb1
{[%clk 0:00:44.9]} 30... Ke7 {[%clk 0:01:52.6]} 31. Kf1 {[%clk 0:00:44.4]} 31...
Ke6 {[%clk 0:01:48.1]} 32. Ke2 {[%clk 0:00:44.9]} 32... h5 {[%clk 0:01:47.7]}
33. f4 {[%clk 0:00:45]} 33... f5 {[%clk 0:01:47.6]} 34. Kf3 {[%clk 0:00:43.6]}
34... Kd7 {[%clk 0:01:45.8]} 35. e4 {[%clk 0:00:43.6]} 35... fxe4+ {[%clk
0:01:45.9]} 36. Kxe4 {[%clk 0:00:44.5]} 36... Bd4 {[%clk 0:01:46.3]} 37. Kf3
{[%clk 0:00:43.6]} 37... Ra8 {[%clk 0:01:45.9]} 38. Re2 {[%clk 0:00:43.8]} 38...
Ra3 {[%clk 0:01:46.2]} 39. h3 {[%clk 0:00:42.9]} 39... c6 {[%clk 0:01:46.2]} 40.
g4 {[%clk 0:00:43.2]} 40... hxg4+ {[%clk 0:01:46.9]} 41. hxg4 {[%clk 0:00:43.3]}
41... d5 {[%clk 0:01:47.8]} 42. f5 {[%clk 0:00:42.2]} 42... gxf5 {[%clk
0:01:42.1]} 43. gxf5 {[%clk 0:00:43.1]} 43... dxc4 {[%clk 0:01:42.7]} 44. Ke4
{[%clk 0:00:37.3]} 44... cxb3 {[%clk 0:01:42.3]} 45. Rh2 {[%clk 0:00:30.4]}
45... b2 {[%clk 0:01:31.6]} 46. Rh7+ {[%clk 0:00:26]} 46... Kd6 {[%clk
0:01:31.3]} 47. Rh6+ {[%clk 0:00:26.5]} 47... Kd7 {[%clk 0:01:31.7]} 48. Rh7+
{[%clk 0:00:26.9]} 48... Ke8 {[%clk 0:01:24]} 49. Rhh1 {[%clk 0:00:17.4]} 49...
Kf7 {[%clk 0:01:23.2]} 50. Rh7+ {[%clk 0:00:16.8]} 50... Kf6 {[%clk 0:01:22.8]}
51. Rh6+ {[%clk 0:00:17.2]} 51... Kg7 {[%clk 0:01:18.1]} 52. Rg6+ {[%clk
0:00:16.4]} 52... Kf7 {[%clk 0:01:18.4]} 53. Rh6 {[%clk 0:00:16.7]} 53... Ra1
{[%clk 0:01:13.2]} 54. Rhh1 {[%clk 0:00:16.3]} 54... Kf6 {[%clk 0:01:13.3]} 55.
Rh6+ {[%clk 0:00:14.9]} 55... Kg5 {[%clk 0:01:12.4]} 56. Rhh1 {[%clk 0:00:15.8]}
56... Kg4 {[%clk 0:01:11.1]} 57. Rhf1 {[%clk 0:00:10.5]} 57... Kg5 {[%clk
0:01:10.7]} 58. Rh1 {[%clk 0:00:07.5]} 58... Ra3 {[%clk 0:01:10.3]} 59. Rhg1+
{[%clk 0:00:05.3]} 59... Bxg1 {[%clk 0:01:08]} 60. Rxg1+ {[%clk 0:00:06.2]}
60... Kf6 {[%clk 0:01:08]} 61. Rb1 {[%clk 0:00:06.2]} 61... Rb3 {[%clk
0:01:07.7]} 0-1

[Event "Late-Titled-Tuesday-Blitz-June-25-2024"]
[Site "Chess.com"]
[Date "2024.06.25"]
[Round "6"]
[White "AldokhinIvan"]
[Black "ninjatrick"]
[Result "0-1"]
[WhiteElo "2637"]
[BlackElo "2512"]
[TimeControl "180+1"]
[EndTime "15:04:55 PDT"]
[Termination "ninjatrick won on time"]

1. e4 {[%clk 0:02:59.8]} 1... e5 {[%clk 0:02:57.6]} 2. Nf3 {[%clk 0:03:00.3]}
2... Nc6 {[%clk 0:02:58.3]} 3. Bb5 {[%clk 0:03:00.9]} 3... Nf6 {[%clk
0:02:58.1]} 4. O-O {[%clk 0:03:00.7]} 4... Nxe4 {[%clk 0:02:58.6]} 5. Re1 {[%clk
0:03:00.6]} 5... Nd6 {[%clk 0:02:56]} 6. Bxc6 {[%clk 0:02:58.1]} 6... dxc6
{[%clk 0:02:56.3]} 7. Nxe5 {[%clk 0:02:59]} 7... Be7 {[%clk 0:02:56.8]} 8. b3
{[%clk 0:02:59.9]} 8... O-O {[%clk 0:02:56.9]} 9. Bb2 {[%clk 0:03:00.6]} 9...
Bf6 {[%clk 0:02:57.3]} 10. d3 {[%clk 0:02:57.9]} 10... Re8 {[%clk 0:02:55.4]}
11. Nd2 {[%clk 0:02:58.2]} 11... Bf5 {[%clk 0:02:54.5]} 12. Qf3 {[%clk 0:02:56]}
12... Bg6 {[%clk 0:02:50.4]} 13. g4 {[%clk 0:02:18.1]} 13... Nb5 {[%clk
0:02:47.6]} 14. Qg3 {[%clk 0:01:55.6]} 14... Bh4 {[%clk 0:02:38.6]} 15. Qg2
{[%clk 0:01:21.9]} 15... Bf6 {[%clk 0:02:33.8]} 16. Ndf3 {[%clk 0:01:16.6]}
16... h6 {[%clk 0:02:28]} 17. Qg3 {[%clk 0:00:58.1]} 17... Nd6 {[%clk
0:02:08.7]} 18. h4 {[%clk 0:00:57.5]} 18... Re6 {[%clk 0:01:51.5]} 19. g5 {[%clk
0:00:38.6]} 19... hxg5 {[%clk 0:01:50.1]} 20. hxg5 {[%clk 0:00:37.1]} 20... Nf5
{[%clk 0:01:48.7]} 21. Qf4 {[%clk 0:00:36.7]} 21... Bxe5 {[%clk 0:01:41.3]} 22.
Rxe5 {[%clk 0:00:35.4]} 22... Qd7 {[%clk 0:01:38.8]} 23. Rae1 {[%clk 0:00:27.2]}
23... Rae8 {[%clk 0:01:37.8]} 24. Rxe6 {[%clk 0:00:25.7]} 24... Rxe6 {[%clk
0:01:38.7]} 25. Rxe6 {[%clk 0:00:24.5]} 25... Qxe6 {[%clk 0:01:39.6]} 26. Qxc7
{[%clk 0:00:23.3]} 26... Qe2 {[%clk 0:01:35.3]} 27. Qb8+ {[%clk 0:00:07.1]}
27... Kh7 {[%clk 0:01:35.6]} 28. Qh2+ {[%clk 0:00:06.6]} 28... Kg8 {[%clk
0:01:36.2]} 29. Qb8+ {[%clk 0:00:04.2]} 29... Kh7 {[%clk 0:01:37.1]} 30. Nd4
{[%clk 0:00:01.7]} 30... Qg4+ {[%clk 0:01:25.1]} 31. Kf1 {[%clk 0:00:01.1]}
31... Qd1+ {[%clk 0:01:25.1]} 32. Kg2 {[%clk 0:00:01]} 32... Qg4+ {[%clk
0:01:11.1]} 33. Kf1 {[%clk 0:00:01.9]} 33... Qh3+ {[%clk 0:01:11.7]} 34. Ke2
{[%clk 0:00:01.8]} 34... Bh5+ {[%clk 0:01:10]} 35. Kd2 {[%clk 0:00:01.9]} 35...
Qf1 {[%clk 0:01:02.7]} 36. Qf4 {[%clk 0:00:02]} 36... Qd1+ {[%clk 0:01:01]} 37.
Kc3 {[%clk 0:00:02.4]} 37... Qe1+ {[%clk 0:01:00.5]} 38. Qd2 {[%clk 0:00:02.9]}
38... Qe5 {[%clk 0:00:57.7]} 39. Kc4 {[%clk 0:00:01.2]} 39... b5+ {[%clk
0:00:57.1]} 40. Kb4 {[%clk 0:00:01.6]} 40... Nxd4 {[%clk 0:00:54.4]} 41. Qc3
{[%clk 0:00:01.3]} 41... Qd6+ {[%clk 0:00:53]} 42. Qc5 {[%clk 0:00:01.8]} 42...
Nxc2+ {[%clk 0:00:53.3]} 43. Ka5 {[%clk 0:00:02]} 43... Qxc5 {[%clk 0:00:53.1]}
0-1

[Event "Late-Titled-Tuesday-Blitz-June-25-2024"]
[Site "Chess.com"]
[Date "2024.06.25"]
[Round "6"]
[White "DryCounty"]
[Black "Gzucaritas"]
[Result "1-0"]
[WhiteElo "2630"]
[BlackElo "2041"]
[TimeControl "180+1"]
[EndTime "15:04:55 PDT"]
[Termination "DryCounty won on time"]

1. e4 {[%clk 0:03:00.9]} 1... e6 {[%clk 0:02:58.6]} 2. d4 {[%clk 0:03:00.4]}
2... d5 {[%clk 0:02:48.3]} 3. exd5 {[%clk 0:03:00.1]} 3... exd5 {[%clk
0:02:47.8]} 4. Nf3 {[%clk 0:03:00.5]} 4... Nf6 {[%clk 0:02:40.1]} 5. Bd3 {[%clk
0:03:00.3]} 5... Bd6 {[%clk 0:02:40]} 6. Qe2+ {[%clk 0:02:59.9]} 6... Be7 {[%clk
0:02:33.9]} 7. O-O {[%clk 0:02:59.3]} 7... O-O {[%clk 0:02:34]} 8. Re1 {[%clk
0:02:59.1]} 8... Re8 {[%clk 0:02:29.7]} 9. Bg5 {[%clk 0:02:58.6]} 9... Bd7
{[%clk 0:02:27.8]} 10. Nc3 {[%clk 0:02:56.2]} 10... c6 {[%clk 0:02:24.1]} 11.
Qd2 {[%clk 0:02:55.3]} 11... Be6 {[%clk 0:02:21.3]} 12. h3 {[%clk 0:02:52.3]}
12... Nbd7 {[%clk 0:02:20.7]} 13. Re2 {[%clk 0:02:50.3]} 13... Qb6 {[%clk
0:02:16.3]} 14. b3 {[%clk 0:02:33.4]} 14... Bb4 {[%clk 0:02:04.8]} 15. a3 {[%clk
0:02:29.9]} 15... Bd6 {[%clk 0:01:52.6]} 16. Bf4 {[%clk 0:02:23.6]} 16... Qc7
{[%clk 0:01:48.4]} 17. Bxd6 {[%clk 0:02:21.5]} 17... Qxd6 {[%clk 0:01:47.7]} 18.
Ne5 {[%clk 0:02:12.8]} 18... Re7 {[%clk 0:01:42.5]} 19. f4 {[%clk 0:01:59.3]}
19... Nf8 {[%clk 0:01:28.4]} 20. b4 {[%clk 0:01:38.6]} 20... Rae8 {[%clk
0:01:22.6]} 21. Rae1 {[%clk 0:01:38]} 21... Bc8 {[%clk 0:01:07]} 22. g4 {[%clk
0:01:37.2]} 22... Ne6 {[%clk 0:01:04.2]} 23. Bf5 {[%clk 0:01:33.4]} 23... g6
{[%clk 0:00:48]} 24. Bxe6 {[%clk 0:01:30.6]} 24... Bxe6 {[%clk 0:00:46.9]} 25.
Kh2 {[%clk 0:01:23.2]} 25... Bc8 {[%clk 0:00:32.7]} 26. Nd3 {[%clk 0:01:17.3]}
26... Ne4 {[%clk 0:00:31]} 27. Nxe4 {[%clk 0:01:14.6]} 27... Rxe4 {[%clk
0:00:24.4]} 28. Rxe4 {[%clk 0:01:13]} 28... Rxe4 {[%clk 0:00:22.5]} 29. Rxe4
{[%clk 0:01:12.5]} 29... dxe4 {[%clk 0:00:22.5]} 30. Ne5 {[%clk 0:01:11]} 30...
f6 {[%clk 0:00:17.8]} 31. Nc4 {[%clk 0:01:10.5]} 31... Qd5 {[%clk 0:00:16.4]}
32. Ne3 {[%clk 0:01:09.6]} 32... Qd6 {[%clk 0:00:15.8]} 33. Kg3 {[%clk
0:01:04.4]} 33... f5 {[%clk 0:00:15.6]} 34. g5 {[%clk 0:00:59.5]} 34... b6
{[%clk 0:00:13.2]} 35. Nc4 {[%clk 0:00:59]} 35... Qd5 {[%clk 0:00:11.9]} 36. Ne5
{[%clk 0:00:58.4]} 36... Be6 {[%clk 0:00:10.2]} 37. c4 {[%clk 0:00:58.3]} 37...
Qd8 {[%clk 0:00:09.3]} 38. Nxc6 {[%clk 0:00:55.8]} 38... Qd6 {[%clk 0:00:08.4]}
39. d5 {[%clk 0:00:53.7]} 39... Bd7 {[%clk 0:00:08.1]} 40. Ne5 {[%clk
0:00:50.1]} 40... Be8 {[%clk 0:00:07.4]} 41. Qd4 {[%clk 0:00:49.3]} 41... Bc6
{[%clk 0:00:06]} 42. Nxc6 {[%clk 0:00:47.4]} 42... h6 {[%clk 0:00:05.4]} 43. Qe5
{[%clk 0:00:44.5]} 43... Qd8 {[%clk 0:00:02.4]} 44. Nxd8 {[%clk 0:00:44.1]} 1-0

[Event "Late-Titled-Tuesday-Blitz-June-25-2024"]
[Site "Chess.com"]
[Date "2024.06.25"]
[Round "6"]
[White "LiemLe"]
[Black "Njal28"]
[Result "0-1"]
[WhiteElo "3026"]
[BlackElo "3118"]
[TimeControl "180+1"]
[EndTime "15:04:59 PDT"]
[Termination "Njal28 won by checkmate"]

1. Nf3 {[%clk 0:03:00.9]} 1... Nf6 {[%clk 0:02:59.9]} 2. c4 {[%clk 0:02:59.5]}
2... g6 {[%clk 0:02:59]} 3. Nc3 {[%clk 0:02:59]} 3... Bg7 {[%clk 0:02:58.6]} 4.
e4 {[%clk 0:02:59.3]} 4... O-O {[%clk 0:02:58.1]} 5. d4 {[%clk 0:02:59.4]} 5...
d6 {[%clk 0:02:58.8]} 6. Be2 {[%clk 0:02:59.8]} 6... e5 {[%clk 0:02:58.7]} 7.
O-O {[%clk 0:02:57.8]} 7... Nc6 {[%clk 0:02:58.3]} 8. d5 {[%clk 0:02:51.5]} 8...
Ne7 {[%clk 0:02:58.5]} 9. b4 {[%clk 0:02:47.4]} 9... a5 {[%clk 0:02:58.4]} 10.
bxa5 {[%clk 0:02:44.8]} 10... Rxa5 {[%clk 0:02:59.3]} 11. a4 {[%clk 0:02:45.1]}
11... Ra8 {[%clk 0:02:59.5]} 12. Nd2 {[%clk 0:02:28.1]} 12... Nd7 {[%clk
0:02:50.9]} 13. Nb3 {[%clk 0:02:26.3]} 13... f5 {[%clk 0:02:50.1]} 14. a5 {[%clk
0:02:25.5]} 14... Nf6 {[%clk 0:02:39.2]} 15. f3 {[%clk 0:02:19.5]} 15... Nh5
{[%clk 0:02:33.2]} 16. c5 {[%clk 0:02:08.6]} 16... Nf4 {[%clk 0:02:24.3]} 17.
Bc4 {[%clk 0:02:05.2]} 17... g5 {[%clk 0:01:55.4]} 18. Ra2 {[%clk 0:01:44.4]}
18... Neg6 {[%clk 0:01:39.1]} 19. Be3 {[%clk 0:01:32.7]} 19... Kh8 {[%clk
0:01:29.1]} 20. cxd6 {[%clk 0:01:28.9]} 20... cxd6 {[%clk 0:01:30]} 21. Bb6
{[%clk 0:01:28.5]} 21... Qe7 {[%clk 0:01:24.7]} 22. Kh1 {[%clk 0:01:16.8]} 22...
Bd7 {[%clk 0:01:13.1]} 23. Bb5 {[%clk 0:01:03.3]} 23... fxe4 {[%clk 0:01:13.1]}
24. fxe4 {[%clk 0:00:47]} 24... Rac8 {[%clk 0:01:13]} 25. Bxd7 {[%clk
0:00:47.3]} 25... Qxd7 {[%clk 0:01:13]} 26. Rc2 {[%clk 0:00:46]} 26... Nh4
{[%clk 0:00:43.4]} 27. g3 {[%clk 0:00:39.1]} 27... Qh3 {[%clk 0:00:28.4]} 28.
Rff2 {[%clk 0:00:34.2]} 28... Nh5 {[%clk 0:00:03.5]} 29. Qxh5 {[%clk 0:00:30.2]}
29... Rxc3 {[%clk 0:00:02.9]} 30. Rxc3 {[%clk 0:00:15]} 30... Rxf2 {[%clk
0:00:02.5]} 31. Rc8+ {[%clk 0:00:05.4]} 31... Bf8 {[%clk 0:00:02.9]} 32. Bxf2
{[%clk 0:00:06.1]} 32... Qg2# {[%clk 0:00:02.6]} 0-1